fUSD/lending_fUSD_20241225
["ID","MTS","AMOUNT","RATE_DAILY","PERIOD"]
[346639509,1735139438451,-500.0,0.00012814,2]
[346639510,1735139438462,-366.91742254,0.00012814,2]
[346639511,1735139438475,-716.45,0.00012814,2]
[346639512,1735139438484,-500.0,0.00012814,2]
[346639513,1735139438493,-1234.85,0.00012814,2]
[346639514,1735139438502,-500.0,0.00012814,2]
[346639515,1735139438513,-500.0,0.00012814,2]
[346639516,1735139438523,-500.0,0.00012814,2]
[346639517,1735139438533,-500.0,0.00012814,2]
[346639518,1735139438542,-500.0,0.00012814,2]
[346639519,1735139438552,-1335.52,0.00012814,2]
[346639520,1735139438561,-1131.19,0.00012814,2]
[346639521,1735139438572,-882.14,0.00012814,2]
[346639522,1735139438581,-500.0,0.00012814,2]
[346639523,1735139438591,-500.0,0.00012814,2]
[346639524,1735139438600,-500.0,0.00012814,2]
[346639525,1735139438609,-500.0,0.00012814,2]
[346639526,1735139438619,-500.0,0.00012815,2]
[346639527,1735139438628,-284.64978089,0.00012815,2]
[346639528,1735139438637,-500.0,0.00012815,2]
[346639529,1735139438647,-500.0,0.00012815,2]
[346639530,1735139438656,-500.0,0.00012815,2]
[346639531,1735139438665,-595.51123407,0.00012815,2]
[346639532,1735139438675,-1895.20997,0.00012815,2]
[346639533,1735139438684,-1828.57249629,0.00012817,2]
[346639534,1735139438693,-1828.57249629,0.00012838,2]
[346639536,1735139438702,-1828.57249629,0.00012859,2]
[346639538,1735139438712,-52739.60756904,0.0001286,2]
[346639539,1735139438721,-500.0,0.0001287,2]
[346639540,1735139438732,-207103.0,0.0001287,2]
[346639541,1735139438741,-1000.0,0.00012876,2]
[346639542,1735139438751,-1828.57249629,0.00012879,2]
[346639543,1735139438760,-3005.1775109,0.00012898,7]
[346639544,1735139438769,-1000.0,0.00012899,2]
[346639546,1735139438779,-540.0,0.000129,2]
[346639548,1735139438788,-3458.02218116,0.000129,2]
[346639550,1735139438797,-114132.46053685,0.000129,10]
[346639597,1735139440478,-500.0,0.00012539,2]
[346639601,1735139440488,-179.7706512,0.00012539,2]
[346639602,1735139440498,-500.0,0.0001254,2]
[346639603,1735139440509,-500.0,0.00012814,2]
[346639604,1735139440518,-423.08051985,0.000129,10]
[346639605,1735139440555,-2646.33936361,0.000129,10]
[346639606,1735139440567,-985.11,0.000129,10]
[346639607,1735139440637,-6535.06181227,0.000129,10]
[346639608,1735139440649,-417.76166719,0.000129,10]
[346639609,1735139440661,-283.62,0.000129,10]
[346639610,1735139440673,-201146.23564396,0.000129,10]
[346639611,1735139440717,-372.37,0.000129,10]
[346639612,1735139440729,-862.3159344,0.000129,10]
[346639613,1735139440741,-982.45049282,0.000129,10]
[346639614,1735139440751,-328.05823,0.000129,10]
[346639615,1735139440934,-448.12608553,0.000129,10]
[346639616,1735139440945,-568.34778,0.000129,10]
[346639648,1735139444550,-500.0,0.00012266,2]
[346639649,1735139444560,-500.0,0.00012266,2]
[346639650,1735139444570,-500.0,0.0001254,2]
[346639652,1735139444579,-500.0,0.00012814,2]
[346639653,1735139444589,-2391.77964589,0.000129,10]
[346639656,1735139444613,-1432.87054111,0.000129,10]
[346639657,1735139444624,-730.07140233,0.000129,10]
[346639658,1735139444637,-652.62529538,0.000129,10]
[346639659,1735139444796,-4245.22314852,0.000129,10]
[346639660,1735139444809,-293.19072224,0.000129,10]
[346639661,1735139444823,-409.80479999,0.000129,10]
[346639662,1735139444836,-3065.14969328,0.000129,10]
[346639663,1735139444848,-4717.6,0.000129,10]
[346639664,1735139444859,-2932.27218675,0.000129,10]
[346639665,1735139444871,-18080.43255791,0.000129,10]
[346639666,1735139444882,-937.23406686,0.000129,10]
[346639667,1735139444894,-625.29279866,0.000129,10]
[346639668,1735139444908,-1341.47799,0.000129,10]
[346639669,1735139444920,-434.67999985,0.000129,10]
[346639670,1735139444931,-1326.41000008,0.000129,10]
[346639686,1735139446398,-399.999999,0.000125,2]
[346639687,1735139446408,-100.000001,0.0001254,2]
[346639688,1735139446419,-399.999999,0.0001254,2]
[346639689,1735139446428,-500.0,0.00012814,2]
[346639690,1735139446438,-2521.4332664,0.000129,10]
[346639691,1735139446449,-1147.39716293,0.000129,10]
[346639692,1735139446460,-470.0,0.000129,10]
[346639693,1735139446475,-228910.0,0.000129,10]
[346639694,1735139446486,-1839.99999992,0.000129,10]
[346639695,1735139446527,-493.53,0.00012266,2]
[346639696,1735139446537,-0.38930519,0.000129,10]
[346639697,1735139446549,-1113.70970627,0.000129,10]
[346639698,1735139446561,-1411.3,0.000129,10]
[346639699,1735139446585,-2333.47218088,0.000129,10]
[346639700,1735139446597,-3876.25222147,0.000129,10]
[346639701,1735139446651,-538.70369134,0.000129,10]
[346639702,1735139446662,-8195.25901937,0.000129,10]
[346639703,1735139446673,-73219.88793113,0.000129,10]
[346639704,1735139446716,-6967.28832488,0.000129,10]
[346639705,1735139446727,-26666.95857354,0.000129,10]
[346639706,1735139446739,-2871.9,0.000129,10]
[346639715,1735139461415,11198.75,0.00025091,60]
[346639716,1735139705276,16000.0,0.0001901,120]
[346639717,1735140089229,526.84,9.541e-05,2]
[346639724,1735140604711,16000.0,0.0001901,120]
[346639742,1735140631736,-250.0,0.00011173,2]
[346639743,1735140631746,-507.56,0.00011177,2]
[346639744,1735140631756,-508.27,0.0001118,2]
[346639745,1735140631765,-507.59,0.00011183,2]
[346639746,1735140631774,-495.28,0.00011188,2]
[346639747,1735140631784,-496.2,0.00011196,2]
[346639748,1735140631793,-499.44,0.00011208,2]
[346639749,1735140631803,-499.82,0.00011226,2]
[346639750,1735140631812,-509.43,0.00011252,2]
[346639756,1735140631821,-495.15,0.00011293,2]
[346639758,1735140632050,-174.04,0.00011326,2]
[346639760,1735140632061,-501.71,0.00011341,2]
[346639762,1735140632071,-202.09959978,0.00011347,2]
[346639766,1735140632100,-293.24040022,0.00011347,2]
[346639768,1735140632110,-471.8131469,0.00011354,2]
[346639771,1735140632133,-28.3368531,0.00011354,2]
[346639772,1735140632142,-492.47,0.00011362,2]
[346639773,1735140632151,-507.45,0.00011376,2]
[346639774,1735140632160,-490.17,0.00011401,2]
[346639775,1735140632170,-499.1,0.0001142,2]
[346639776,1735140632179,-350.02,0.00011459,2]
[346639777,1735140632188,-496.03,0.00011459,2]
[346639778,1735140632197,-507.0,0.00011459,2]
[346639779,1735140632206,-507.82,0.00011459,2]
[346639780,1735140632216,-495.27,0.00011459,2]
[346639781,1735140632225,-497.79,0.0001146,2]
[346639782,1735140632234,-500.74,0.0001146,2]
[346639783,1735140632244,-496.86,0.00011461,2]
[346639784,1735140632253,-499.32,0.00011462,2]
[346639785,1735140632262,-493.68,0.00011464,2]
[346639786,1735140632272,-495.78,0.00011468,2]
[346639787,1735140632282,-499.08,0.00011474,2]
[346639788,1735140632291,-502.53,0.00011484,2]
[346639789,1735140632300,-501.11,0.00011501,2]
[346639790,1735140632310,-497.94,0.00011531,2]
[346639791,1735140632319,-509.62,0.00011581,2]
[346639792,1735140632328,-526.84,0.00011805,2]
[346639793,1735140632337,-504.21,0.0001182,2]
[346639794,1735140632347,-507.1,0.00011841,2]
[346639795,1735140632357,-498.28,0.00011872,2]
[346639796,1735140632366,-490.09,0.00011872,2]
[346639797,1735140632375,-502.42,0.00011872,2]
[346639798,1735140632385,-507.11,0.00011872,2]
[346639799,1735140632394,-495.27,0.00011872,2]
[346639800,1735140632403,-504.59,0.00011872,2]
[346639801,1735140632412,-500.1,0.00011872,2]
[346639802,1735140632421,-496.1,0.00011872,2]
[346639803,1735140632431,-506.97,0.00011873,2]
[346639804,1735140632444,-495.61,0.00011873,2]
[346639805,1735140632453,-505.29,0.00011873,2]
[346639806,1735140632463,-499.3,0.00011874,2]
[346639807,1735140632473,-496.32,0.00011875,2]
[346639808,1735140632482,-495.75,0.00011876,2]
[346639809,1735140632492,-493.02,0.00011878,2]
[346639810,1735140632501,-492.03,0.0001188,2]
[346639811,1735140632510,-491.32,0.00011883,2]
[346639812,1735140632520,-1000.0,0.00011886,2]
[346639813,1735140632529,-496.21,0.00011886,2]
[346639814,1735140632538,-505.55,0.00011886,2]
[346639815,1735140632547,-494.53,0.00011886,2]
[346639816,1735140632557,-1400.0,0.00011972,2]
[346639817,1735140632566,-500.0,0.00011972,2]
[346639818,1735140632577,-490.37,0.00011972,2]
[346639819,1735140632586,-492.98,0.00011972,2]
[346639820,1735140632595,-490.15,0.00011972,2]
[346639821,1735140632605,-497.95,0.00011972,2]
[346639822,1735140632614,-504.47,0.00011972,2]
[346639823,1735140632623,-493.99,0.00011972,2]
[346639824,1735140632632,-503.71,0.00011972,2]
[346639825,1735140632643,-509.4,0.00011972,2]
[346639826,1735140632652,-506.0,0.00011972,2]
[346639827,1735140632661,-497.51,0.00011972,2]
[346639828,1735140632670,-504.68,0.00011972,2]
[346639829,1735140632680,-492.41,0.00011972,2]
[346639830,1735140632689,-491.7,0.00011972,2]
[346639831,1735140632698,-408.12,0.0001226,2]
[346639832,1735140632708,-151.0,0.00012314,2]
[346639833,1735140632717,-1918.345,0.000124,2]
[346639834,1735140632726,-500.0,0.00012539,2]
[346639835,1735140632735,-500.0,0.00012539,2]
[346639836,1735140632745,-500.0,0.00012539,2]
[346639837,1735140632754,-500.0,0.00012539,2]
[346639838,1735140632763,-10024.99056065,0.000126,2]
[346639848,1735140637531,-1338.82484554,0.000126,2]
[346639849,1735140637581,-9739.2,0.000126,2]
[346639850,1735140637745,-2984.19087952,0.000126,2]
[346639851,1735140637911,-2387.08319283,0.000126,2]
[346639852,1735140637923,-103283.55982868,0.000126,2]
[346639873,1735140639783,-610.35,0.000126,2]
[346639874,1735140639794,-324.70577095,0.000126,2]
[346639875,1735140639843,-525.755001,0.000126,2]
[346639876,1735140639906,-3487.57910841,0.000126,2]
[346639877,1735140639931,-5901.96207149,0.000126,2]
[346639878,1735140639943,-390.242268,0.000126,2]
[346639879,1735140640086,-483.75090081,0.000126,2]
[346639880,1735140643336,-1385.08499997,0.000126,2]
[346639882,1735140643641,-8074.23872659,0.000126,2]
[346639884,1735140643677,-1254.32754042,0.000126,2]
[346639885,1735140643730,-8400.0000004,0.000126,2]
[346639886,1735140643891,-2239.10260521,0.000126,2]
[346639887,1735140643950,-4584.2756899,0.000126,2]
[346639888,1735140643962,-211663.69280276,0.000126,2]
[346639889,1735140643975,-2697.17970122,0.000126,2]
[346639891,1735140644008,-30405.17408027,0.000126,2]
[346639892,1735140644021,-34092.92339029,0.000126,2]
[346639893,1735140644033,-503.3980493,0.000126,2]
[346639922,1735140645768,-222.90059439,0.00012575,2]
[346639923,1735140645780,-243.53940558,0.000126,2]
[346639924,1735140645791,-2361.564996,0.000126,2]
[346639925,1735140645806,-2458.05,0.000126,2]
[346639926,1735140645818,-42041.8950722,0.000126,2]
[346639927,1735140645830,-60210.800001,0.000126,2]
[346639928,1735140645851,-1920.0,0.000126,2]
[346639929,1735140645965,-7678.863791,0.000126,2]
[346639930,1735140645978,-3000.54938665,0.000126,2]
[346639931,1735140645990,-1394.25,0.000126,2]
[346639950,1735140663720,129506.59439828,0.00025082,60]
[346639951,1735141049093,284.95298853,9.02e-05,2]
[346639952,1735141068734,5128.55553078,9e-05,2]
[346639953,1735141068756,10000.0,9e-05,2]
[346639954,1735141068778,10000.0,9e-05,2]
[346639955,1735141068799,10000.0,9e-05,2]
[346639956,1735141068825,10000.0,9e-05,2]
[346639957,1735141068846,10000.0,9e-05,2]
[346639958,1735141068868,10000.0,9e-05,2]
[346639959,1735141068890,10000.0,9e-05,2]
[346639960,1735141068914,10000.0,9e-05,2]
[346639961,1735141068935,10000.0,9e-05,2]
[346639962,1735141068956,10000.0,9e-05,2]
[346639963,1735141068977,10000.0,9e-05,2]
[346639964,1735141068998,10000.0,9e-05,2]
[346639965,1735141069023,10000.0,9e-05,2]
[346639966,1735141069046,10000.0,9e-05,2]
[346639967,1735141069069,10000.0,9e-05,2]
[346639968,1735141069092,10000.0,9e-05,2]
[346639969,1735141069113,10000.0,9e-05,2]
[346639970,1735141069135,10000.0,9e-05,2]
[346639971,1735141069156,10000.0,9e-05,2]
[346639972,1735141069179,10000.0,9e-05,2]
[346639973,1735141069200,10000.0,9e-05,2]
[346639974,1735141069226,10000.0,9e-05,2]
[346639975,1735141069249,10000.0,9e-05,2]
[346639976,1735141069271,10000.0,9e-05,2]
[346639977,1735141069291,10000.0,9e-05,2]
[346639978,1735141069312,10000.0,9e-05,2]
[346639979,1735141069334,10000.0,9e-05,2]
[346639980,1735141069355,10000.0,9e-05,2]
[346639981,1735141069382,10000.0,9e-05,2]
[346639982,1735141069404,10000.0,9e-05,2]
[346639983,1735141069425,10000.0,9e-05,2]
[346639984,1735141069448,10000.0,9e-05,2]
[346639985,1735141069471,10000.0,9e-05,2]
[346639986,1735141069494,10000.0,9e-05,2]
[346639987,1735141069516,10000.0,9e-05,2]
[346639988,1735141069538,10000.0,9e-05,2]
[346639989,1735141069560,10000.0,9e-05,2]
[346639990,1735141069582,10000.0,9e-05,2]
[346639991,1735141069603,10000.0,9e-05,2]
[346639992,1735141069623,10000.0,9e-05,2]
[346639993,1735141069645,10000.0,9e-05,2]
[346639994,1735141069666,10000.0,9e-05,2]
[346639995,1735141069686,10000.0,9e-05,2]
[346639996,1735141069708,10000.0,9e-05,2]
[346639997,1735141069728,10000.0,9e-05,2]
[346639998,1735141069749,10000.0,9e-05,2]
[346639999,1735141069769,10000.0,9e-05,2]
[346640000,1735141069790,10000.0,9e-05,2]
[346640001,1735141069811,10000.0,9e-05,2]
[346640002,1735141069831,10000.0,9e-05,2]
[346640003,1735141069851,10000.0,9e-05,2]
[346640004,1735141069872,10000.0,9e-05,2]
[346640005,1735141069893,10000.0,9e-05,2]
[346640006,1735141069913,10000.0,9e-05,2]
[346640007,1735141069934,10000.0,9e-05,2]
[346640008,1735141069955,10000.0,9e-05,2]
[346640009,1735141069975,10000.0,9e-05,2]
[346640010,1735141069996,10000.0,9e-05,2]
[346640011,1735141070021,10000.0,9e-05,2]
[346640012,1735141070043,10000.0,9e-05,2]
[346640013,1735141070065,10000.0,9e-05,2]
[346640014,1735141070086,10000.0,9e-05,2]
[346640015,1735141070110,10000.0,9e-05,2]
[346640016,1735141070131,10000.0,9e-05,2]
[346640017,1735141070152,10000.0,9e-05,2]
[346640018,1735141070173,8782.70531198,9e-05,2]
[346640019,1735141162915,200.0,8.955e-05,2]
[346640020,1735141355492,201.24,8.873e-05,2]
[346640021,1735141434445,816.05468802,8.988e-05,2]
[346640022,1735141434469,10000.0,8.988e-05,2]
[346640023,1735141434492,10000.0,8.988e-05,2]
[346640024,1735141434515,10000.0,8.988e-05,2]
[346640025,1735141434905,10000.0,8.988e-05,2]
[346640026,1735141434929,10000.0,8.988e-05,2]
[346640027,1735141434952,10000.0,8.988e-05,2]
[346640028,1735141434975,10000.0,8.988e-05,2]
[346640029,1735141434999,10000.0,8.988e-05,2]
[346640030,1735141435022,10000.0,8.988e-05,2]
[346640031,1735141435043,10000.0,8.988e-05,2]
[346640032,1735141435064,10000.0,8.988e-05,2]
[346640033,1735141435085,10000.0,8.988e-05,2]
[346640034,1735141435106,10000.0,8.988e-05,2]
[346640035,1735141435128,10000.0,8.988e-05,2]
[346640036,1735141435152,10000.0,8.988e-05,2]
[346640037,1735141435175,10000.0,8.988e-05,2]
[346640038,1735141435197,10000.0,8.988e-05,2]
[346640039,1735141435222,10000.0,8.988e-05,2]
[346640040,1735141435243,10000.0,8.988e-05,2]
[346640041,1735141435264,10000.0,8.988e-05,2]
[346640042,1735141435286,10000.0,8.988e-05,2]
[346640043,1735141435313,1579608.10006027,8.988e-05,2]
[346640044,1735141435343,2000000.0,8.988e-05,2]
[346640045,1735141435369,10000.0,8.988e-05,2]
[346640046,1735141435393,2000000.0,8.988e-05,2]
[346640047,1735141435416,2000000.0,8.988e-05,2]
[346640048,1735141435441,439929.22113832,8.988e-05,2]
[346640049,1735141504295,16000.0,0.0001901,120]
[346640050,1735141618341,236.51,8.685e-05,2]
[346640061,1735141831923,-596.831,9.66e-05,2]
[346640062,1735141831933,-300.0,9.759e-05,2]
[346640063,1735141831942,-1410.22615261,9.759e-05,2]
[346640064,1735141831955,-2042.9495505,9.759e-05,2]
[346640065,1735141831966,-506.6,9.759e-05,2]
[346640066,1735141832176,-1830.0,9.759e-05,2]
[346640107,1735141837749,-10244.40604827,9.66e-05,2]
[346640108,1735141837848,-1262.98724225,9.66e-05,2]
[346640109,1735141837860,-4083.8870792,9.66e-05,2]
[346640110,1735141837947,-827.04223028,9.66e-05,2]
[346640111,1735141837958,-12906.32934799,9.759e-05,2]
[346640112,1735141837971,-523.24999839,9.759e-05,2]
[346640113,1735141837983,-16409.33244693,9.759e-05,2]
[346640114,1735141837993,-201.24,9.76e-05,2]
[346640115,1735141838002,-561.68279296,9.76e-05,2]
[346640116,1735141838011,-236.51,9.771e-05,2]
[346640117,1735141838021,-2616.12103978,9.771e-05,2]
[346640118,1735141838030,-668.97,9.902e-05,2]
[346640119,1735141838040,-1000.0,0.0001,2]
[346640120,1735141838049,-512.59,0.00010137,2]
[346640122,1735141838058,-201.24,0.00010647,2]
[346640124,1735141838067,-341.48,0.00010759,2]
[346640126,1735141838078,-166.86,0.00010782,2]
[346640127,1735141838087,-250.0,0.00010856,2]
[346640128,1735141838097,-236.51,0.00010856,2]
[346640129,1735141838107,-1000.0,0.00010889,2]
[346640130,1735141838116,-1519.76,0.00010902,2]
[346640131,1735141838125,-6435.44,0.00010959,2]
[346640132,1735141838135,-790.06,0.00010982,2]
[346640133,1735141838144,-1000.0,0.00011,2]
[346640134,1735141838153,-822.88,0.00011007,2]
[346640135,1735141838162,-250.0,0.00011033,2]
[346640136,1735141838171,-1001.01,0.00011247,2]
[346640137,1735141838181,-1285.47,0.00011247,2]
[346640138,1735141838190,-153.74,0.00011247,2]
[346640139,1735141838199,-153.74,0.00011266,2]
[346640140,1735141838208,-153.74,0.00011285,2]
[346640141,1735141838218,-500.0,0.00011286,2]
[346640142,1735141838227,-153.74,0.00011304,2]
[346640143,1735141838237,-1853.14,0.00011312,2]
[346640144,1735141838246,-183.43,0.00011312,2]
[346640145,1735141838256,-878.50735552,0.00011499,2]
[346640146,1735141838266,-201.24,0.00011534,2]
[346640147,1735141838275,-3217.83,0.000116,2]
[346640148,1735141838284,-4339.09,0.00011663,2]
[346640149,1735141838295,-150.0,0.00011719,2]
[346640150,1735141838304,-7037.56,0.00011761,2]
[346640151,1735141838313,-25535.71315091,0.000118,2]
[346640152,1735141838323,-250.0,0.00011825,2]
[346640153,1735141838332,-498.75,0.00011858,2]
[346640154,1735141838341,-505.85,0.00011858,2]
[346640155,1735141838351,-491.5,0.00011858,2]
[346640156,1735141838360,-505.14,0.00011858,2]
[346640157,1735141838369,-506.74,0.00011858,2]
[346640158,1735141838378,-504.58,0.00011858,2]
[346640159,1735141838387,-491.9,0.00011858,2]
[346640160,1735141838397,-493.64,0.00011858,2]
[346640161,1735141838406,-497.76,0.00011858,2]
[346640162,1735141838418,-498.04,0.00011858,2]
[346640163,1735141838427,-494.82,0.00011858,2]
[346640164,1735141838436,-494.88,0.00011858,2]
[346640165,1735141838445,-509.27,0.00011858,2]
[346640166,1735141838454,-507.86,0.00011858,2]
[346640167,1735141838463,-500.65,0.00011858,2]
[346640168,1735141838472,-509.68,0.00011858,2]
[346640169,1735141838482,-493.68,0.00011858,2]
[346640170,1735141838490,-501.05,0.00011858,2]
[346640171,1735141838499,-172.0,0.00011859,2]
[346640172,1735141838509,-230.42,0.00011859,2]
[346640173,1735141838519,-200.0,0.00011859,2]
[346640174,1735141838528,-200.0,0.00011859,2]
[346640175,1735141838538,-168.0140713,0.00011899,2]
[346640176,1735141838551,-157.98869651,0.000119,2]
[346640177,1735141838562,-333333.06890297,0.000119,2]
[346640178,1735141838573,-236.51,0.00011942,2]
[346640179,1735141838582,-1700.0,0.00011972,2]
[346640180,1735141838592,-600.0,0.00011972,2]
[346640181,1735141838601,-500.0,0.00011973,2]
[346640182,1735141838610,-500.0,0.00011973,2]
[346640183,1735141838620,-200.0,0.00011985,2]
[346640184,1735141838629,-200.0,0.00011985,2]
[346640185,1735141838639,-200.0,0.00011985,2]
[346640186,1735141838648,-200.0,0.00011985,2]
[346640187,1735141838657,-200.0,0.00011985,2]
[346640188,1735141838667,-200.0,0.00011985,2]
[346640189,1735141838676,-157.98869651,0.00011987,2]
[346640190,1735141838686,-562.044662,0.00011987,2]
[346640191,1735141838695,-191.29263126,0.0001199,2]
[346640192,1735141838705,-191.29263126,0.0001199,2]
[346640193,1735141838715,-191.29263126,0.0001199,2]
[346640194,1735141838724,-208.26189319,0.00011999,2]
[346640195,1735141838735,-500.0,0.00011999,2]
[346640196,1735141838744,-207.04356193,0.00011999,2]
[346640197,1735141838754,-500.0,0.00011999,2]
[346640198,1735141838764,-500.0,0.00011999,2]
[346640199,1735141838775,-500.0,0.00011999,2]
[346640200,1735141838785,-500.0,0.00011999,2]
[346640201,1735141838794,-500.0,0.00011999,2]
[346640202,1735141838804,-500.0,0.00011999,2]
[346640203,1735141838815,-500.0,0.00011999,2]
[346640204,1735141838826,-500.0,0.00011999,2]
[346640205,1735141838836,-500.0,0.00011999,2]
[346640206,1735141838845,-214.43469016,0.00011999,2]
[346640207,1735141838854,-21840.1322963,0.00011999,2]
[346640208,1735141838863,-30478.84290822,0.00011999,2]
[346640209,1735141838872,-14942.29187337,0.00012,2]
[346640210,1735141838882,-1578958.27786607,0.00012,2]
[346640211,1735141838891,-1000.0,0.00012,2]
[346640212,1735141838901,-47918.29158693,0.00012,2]
[346640213,1735141838911,-65240112.62519846,0.00012,4]
[346640214,1735141839151,-500.72386877,0.00012,4]
[346640215,1735141839947,-554.16,0.00012,4]
[346640216,1735141839959,-257181.50063969,0.00012,4]
[346640217,1735141839970,-4935.48907305,0.00012,4]
[346640218,1735141839982,-1475.02724363,0.00012,4]
[346640219,1735141839993,-1236.35743797,0.00012,4]
[346640220,1735141840091,-3543.59922352,0.00012,4]
[346640221,1735141840103,-2109.31359452,0.00012,4]
[346640222,1735141840114,-1107.43315,0.00012,4]
[346640224,1735141840391,-500.0,0.00011899,2]
[346640225,1735141840401,-500.0136496,0.00012,4]
[346640228,1735141840413,-680.90665295,0.00012,4]
[346640230,1735141840424,-3448.70284767,0.00012,4]
[346640232,1735141840435,-1452.21272233,0.00012,4]
[346640312,1735141843037,-67507.41442555,0.00012,4]
[346640313,1735141843049,-967.018,0.00012,4]
[346640314,1735141843060,-14702.01314186,0.00012,4]
[346640315,1735141843073,-987.01,0.00012,4]
[346640316,1735141843085,-1618430.64217317,0.00012,4]
[346640317,1735141843140,-2908.26112629,0.00012,4]
[346640322,1735141845929,-500.0,0.00011899,2]
[346640323,1735141845938,-12610.86382,0.00012,4]
[346640324,1735141845950,-263.38623108,0.00012,4]
[346640325,1735141846029,-282.829833,0.00012,4]
[346640326,1735141846041,-256.09224003,0.00012,4]
[346640327,1735141846052,-27045.5275716,0.00012,4]
[346640328,1735141846064,-25201.34903905,0.00012,4]
[346640329,1735141846118,-3222.3,0.00012,4]
[346640330,1735141846130,-375.6799385,0.00012,4]
[346640331,1735141846141,-46667.11958579,0.00012,4]
[346640356,1735141848135,-1747.8,0.00012,4]
[346640357,1735141848147,-550161.24637383,0.00012,4]
[346640358,1735141848169,-3658.55757206,0.00012,4]
[346640359,1735141848194,-806.10305064,0.00012,4]
[346640360,1735142081329,2676.48,0.0002,120]
[346640361,1735142130449,1050.07,8.926e-05,2]
[346640362,1735142202102,201.24,8.59e-05,2]
[346640363,1735142300028,1000.0,0.0002,120]
[346640364,1735142405982,16000.0,0.0001901,120]
[346640365,1735142431215,150.0,0.00019622,120]
[346640369,1735142610779,150.0,0.00019812,120]
[346640370,1735142633904,153.89063212,0.0002,120]
[346640371,1735142698509,236.51,8.081e-05,2]
[346640372,1735142790738,150.0,0.00018332,120]
[346640378,1735142910766,150.0,0.00018465,120]
[346640404,1735143031883,-614.74399974,9.66e-05,2]
[346640406,1735143031937,-3218.49140026,9.66e-05,2]
[346640407,1735143031947,-166.66666667,0.0001,2]
[346640408,1735143031957,-203.59471565,0.0001,2]
[346640409,1735143031966,-250.0,0.00010005,2]
[346640410,1735143031975,-1000.0,0.00010061,2]
[346640411,1735143031986,-200.76911742,0.00010082,2]
[346640412,1735143031999,-490.98088258,0.00010082,2]
[346640413,1735143032008,-151.0,0.000101,2]
[346640414,1735143032017,-250.0,0.00010107,2]
[346640415,1735143032026,-115.9591007,0.00010137,2]
[346640416,1735143032038,-51.6208993,0.00010137,2]
[346640417,1735143032048,-422.27256751,0.0001014,2]
[346640418,1735143032059,-1625.64,0.0001014,2]
[346640419,1735143032071,-1137.24743249,0.0001014,2]
[346640420,1735143032080,-151.0,0.000102,2]
[346640421,1735143032089,-151.0,0.000103,2]
[346640422,1735143032099,-167.62,0.00010395,2]
[346640423,1735143032109,-151.48,0.00010621,2]
[346640424,1735143032118,-151.48,0.00010624,2]
[346640429,1735143032346,-3044.94,0.00010624,2]
[346640431,1735143032356,-345.23256751,0.00010624,2]
[346640433,1735143032372,-729.07743249,0.00010624,2]
[346640435,1735143032381,-271.01256751,0.00010624,2]
[346640439,1735143032411,-2184.06743249,0.00010624,2]
[346640441,1735143032421,-999.99,0.00010624,2]
[346640443,1735143032430,-150.99,0.00010624,2]
[346640445,1735143032439,-150.99,0.00010624,2]
[346640447,1735143032448,-1445.44,0.00010624,2]